{"text_format":"1","workbook":"xlsx","n_sheets":4,"sheets":["Einführung","Heizenergiebedarf","Wirtschaftlichkeit","Haftungsausschluss, Copyright"],"not_rendered":{"charts":2,"images":3,"macros":1,"external_links":0,"defined_names":2,"comments":3,"pivot_tables":0},"unopened":[],"bounds":{"document_bytes":16777216,"sheet_cells":100000,"rows_first":2000,"rows_last":500,"rows_between":2000,"halvings":0,"cell_chars":16384,"cell_head_chars":4096},"cells_cut":0,"cells_raw":0,"read":"whole","date_system":"1900"}

{"sheet":"Einführung","index":0,"n_rows":55,"n_cols":20,"rows_kept":55,"cut":false,"hidden":false,"merged":[[30,0,30,8],[32,0,32,3],[0,0,0,12]]}
["www.erdsondenoptimierung.ch \n\nWirtschaftlichkeitsberechnung von kleinen Erdwärmesondenanlagen in Kombination mit Solaranlagen",null,null,null,null,null,null,null,null,null,null,null,null,null,null,null,null,null,null,"Institut für Facility Management | November 2012"]
[]
["Einführung"]
[]
["Diese Datei soll eine einfache Hilfe zur Berechnung der jährlichen Kosten einer kleinen Wärmepumpenanlage mit "]
["Erdwärmesonden (EWS) (5-20 kW) bereitstellen. Dabei werden 6 verschiedene Möglichkeiten in Betracht gezogen: "]
["Eine Standard-Anlage oder Anlage mit optimierter EWS (tiefer, bessere Hinterfüllung, höhere Jahresarbeitszahl), je mit "]
["der Möglichkeit zusätzlich entweder eine thermische Sonnenkollektorenanlage (SK) oder eine Photovoltaikanlage (PV) "]
["in der Berechnung mit einzubeziehen."]
[]
["Die Investitionskosten der Anlage werden gemäss nebenstehender Figur angenommen, können aber mit eigenen"]
["Werten ersetzt werden, falls genauere Werte bekannt sind. Hinzu kommen die Investitionskosten der thermischen "]
["Sonnenkollektorenanlage (Annahme 3'000.- Fr./m2) oder der Photovoltaikanlage (650.- Fr./m2), die Planungs- und "]
["Bewilligungsgebühren (Annahme 10'000.- Fr.) und die Baunebenkosten wie Maurer, Gärtner, etc. (5'000.- Fr.)."]
["Auch diese Werte sind nur Vorschläge und können in der Berechnung ersetzt werden."]
["Wird eine optimierte Erdwärmesondenanlage installiert, so werden 800.- Fr. für die Sole abgezogen, da von"]
["der Nutzung von reinem Wasser als Sondenfluid ausgegangen wird."]
[]
["Von den Investitionskosten können Subventionen (für EWS, thermische Sonnenkollektorenanlage und "]
["Photovoltaikanlage) abgezogen werden. Handelt es sich nicht um einen Neubau sondern eine Sanierung, so kann "]
["im Folgejahr ein Steuerabzug geltend gemacht werden. Dieser ist standardmässig auf 20 % der Investitionskosten "]
["festgelegt, kann aber ebenfalls verändert werden."]
[]
["Die Investitionskosten abzüglich Subventionen und Steuerabzug werden nun mit einem Annuitätsfaktor multipliziert, um "]
["die Jahreskosten für Verzinsung und Abschreibung zu erhalten. Dazu werden die jährlichen Kosten für Stromverbrauch "]
["und Wartung addiert, um die totalen Jahreskosten (Fr.) und den Wärmepreis (Rp./kWh) zu berechnen. Bei den "]
["Stromkosten (Tarif für Wärmepumpen) wird eine Aufteilung von 2/3 Hochtarif und 1/3 Niedertarif angenommen."]
[]
["Ist die Photovoltaikanlage bei Swissgrid registriert und akzeptiert, erhält man eine kostendeckende "]
["Einspeisevergütung (KEV). Die Höhe der Vergütung kann mit Hilfe des Tarifrechners von Swissgrid abgeschätzt werden."]
["Dieser kann unter https://www.guarantee-of-origin.ch/swissforms/TarifAuswahl.aspx?Language=DE aufgerufen werden."]
["Es können an dieser Stelle keine genaueren Angaben zur Vergütung gemacht werden, da diese zur Zeit in Revision sind."]
["Eine Erklärung zur KEV Berechnung finden Sie hier."]
["Wenn keine KEV-Vergütung möglich ist, muss beim zuständigen Stromversorger (lokales EW) der Einspeisetarif in Erfahrung gebracht werden. "]
[]
["Anleitung"]
[]
["1) Klicken Sie in die Registerkarte \"Heizenergiebedarf\"."]
[]
["2) Geben Sie die geforderten Eingaben Ihres Hauses oder Heizsystems bei \"Benutzereingaben\" ein. "]
["    Der Wärmebedarf für die Heizung und die Warmwasseraufbereitung wird berechnet."]
[]
["3) Klicken Sie in die Registerkarte \"Wirtschaftlichkeit\"."]
[]
["4) Geben Sie die Eigenschaften Ihrer geplanten/gewünschten Anlage bei \"Benutzereingaben\" ein. "]
[]
["5) Die Angaben, welche unter \"Berechnete Anlagedaten\" in den orangen Kästchen erscheinen, sind berechnete sowie in der Einführung erwähnte"]
["    Werte und können durch Eingabe in das zugehörige blaue Kästchen ersetzt werden, wenn Ihnen genauere Angaben bekannt sind."]
[]
["6) In den Abschnitten \"Energiebilanz\" und \"Kostenberechnung\" finden Sie nach Eingabe aller erforderlichen Angaben "]
["    eine Übersicht über den Energiesaldo (totaler jährlicher Energieverbrauch) und die totalen Jahreskosten für verschiedene "]
["    Versionen der Anlage. Diese Zahlen sind zur besseren Übersicht zusätzlich graphisch in einem Balkendiagramm dargestellt."]
[]
["Es sind teilweise erläuternde Kommentare vorhanden."]
["Mit der Registerkarte Haftungsausschluss, Copyright können Sie sich über die Rechte zur Benutzung und die Autorenschaft informieren."]

{"sheet":"Heizenergiebedarf","index":1,"n_rows":46,"n_cols":30,"rows_kept":46,"cut":false,"hidden":false,"merged":[[41,1,44,2],[0,0,0,1]]}
["www.erdsondenoptimierung.ch\n\nBerechnung Wärmebedarf und Energiekennzahl",null,null,null,null,null,null,null,null,null,null,null,null,null,null,null,null,null,null,null,null,null,null,null,null,null,null,null,null,"Institut für Facility Management | November 2012"]
[]
["BENUTZEREINGABEN",null,null,"Heizart auswählen…","Heizanlage",null,"WW-Aufbereitung auswählen…","Bautyp wählen…","Haustyp auswählen…","Ja"]
["Neu-/Altbau",null,null,"Öl","Gesamter Stromverbrauch",null,"mit Heizung","Neubau","Einfamilienhaus","Nein"]
["Wärmebedarfsberechnung vorhanden",null,null,"Gas",null,null,"elektrisch","Altbau","Mehrfamilienhaus"]
["Energiebezugsfläche",null,"m2","Holz"]
["Heizwärmebedarf (Qh)",null,"MJ/m2","Elektro direkt"]
["Haustyp"]
["Anzahl Personen im Haushalt"]
["Wohnfläche netto beheizt",null,"m","wärmebedarf ww ","wärmebedarf heizen altbau, neubau","abschätzung wärmebedarf kWh","Kompaktheit wählen…","Kompaktheit Zahl MFH","Kompaktheit Zahl EFH","Kompaktheit"]
["Kompaktheit",null,null,{"$f":"IF(B9<>\"\",B9*850,\"\")","v":""},{"$f":"IF(B20<>\"\",    IF(B14=\"Öl\",    IF(B15=\"mit Heizung\",10*B20*0.85-B32,10*B20*0.85),    IF(B14=\"Gas\",    IF(B15=\"mit Heizung\",B20*0.85-B32,B20*0.85),    IF(B14=\"Holz\",    IF(B15=\"mit Heizung\",4.3*B20*0.8-B32,4.3*B20*0.8),    IF(B14=\"Elektro direkt\",    IF(B21=\"Gesamter Stromverbrauch\",B20-B32-G17,B20-B32),\"\")))),\"\")","v":""},{"$f":"IF(AND(F17<>\"\",B33<>\"\"),   F17*B33/3.6,\"\")","v":""},"Kompakt",0.8,1.5,{"$f":"IF($B$8=\"Einfamilienhaus\",I11,  IF($B$8=\"Mehrfamilienhaus\",H11,\"\"))","v":""}]
["Geographische Lage",null,null,null,{"$f":"IF(B5=\"Ja\",    IF(AND(B7<>\"\",B6<>\"\"),B7*B6/3.6,\"\"),      IF(B5=\"nein\",   IF(F11<>\"\",F11,\"\"),\"\"))","v":""},null,"Normal",1.5,2,{"$f":"IF($B$8=\"Einfamilienhaus\",I12,  IF($B$8=\"Mehrfamilienhaus\",H12,\"\"))","v":""}]
["Höhe über Meer",null,"m2",null,null,null,"Wenig Kompakt",2,2.5,{"$f":"IF($B$8=\"Einfamilienhaus\",I13,  IF($B$8=\"Mehrfamilienhaus\",H13,\"\"))","v":""}]
["Heizart bisher"]
["Warmwasseraufbereitung"]
[{"$f":"IF(B$14=\"Öl\",\"Ölverbrauch Jahr 1\",IF(B$14=\"Gas\",\"Gasverbrauch Jahr 1\",IF(B$14=\"Holz\",\"Holzverbrauch Jahr 1\",IF(B$14=\"Elektro direkt\",\"Stromverbrauch Jahr 1\",\"\"))))","v":""},null,{"$f":"IF(B$14=\"Öl\",\"Liter pro Jahr\",IF(B$14=\"Gas\",\"kWh pro Jahr\",IF(B$14=\"Holz\",\"kg pro Jahr\",IF(B$14=\"Elektro direkt\",\"kWh pro Jahr\",\"\"))))","v":""},"Qh,li0","deltaQh,li","Qh,li","stromverbrauch ","Alpensüdseite"]
[{"$f":"IF(B$14=\"Öl\",\"Ölverbrauch Jahr 2\",IF(B$14=\"Gas\",\"Gasverbrauch Jahr 2\",IF(B$14=\"Holz\",\"Holzverbrauch Jahr 2\",IF(B$14=\"Elektro direkt\",\"Stromverbrauch Jahr 2\",\"\"))))","v":""},null,{"$f":"IF(B$14=\"Öl\",\"Liter pro Jahr\",IF(B$14=\"Gas\",\"kWh pro Jahr\",IF(B$14=\"Holz\",\"kg pro Jahr\",IF(B$14=\"Elektro direkt\",\"kWh pro Jahr\",\"\"))))","v":""},{"$f":"IF(D20<>\"\",       IF(B8=\"Einfamilienhaus\",65*(1 - 0.08*D20),      IF(B8=\"Mehrfamilienhaus\",55*(1 - 0.08*D20),\"\")),\"\")","v":""},{"$f":"IF(D20<>\"\",65*(1-0.08*D20),\"\")","v":""},{"$f":"IF(AND(D17<>\"\",E17<>\"\",B11<>\"\"),    D17+E17*IF(B11=\"Kompakt\",J11,  IF(B11=\"Normal\",J12,   IF(B11=\"Wenig Kompakt\",J13,\"\"))),  \"\")","v":""},{"$f":"IF(B8=\"Einfamilienhaus\",4500+(B9-2)*500,IF(B8=\"Mehrfamilienhaus\",3500+(B9-2)*500,\"\"))","v":""},"Alpennordseite"]
[{"$f":"IF(B$14=\"Öl\",\"Ölverbrauch Jahr 3\",IF(B$14=\"Gas\",\"Gasverbrauch Jahr 3\",IF(B$14=\"Holz\",\"Holzverbrauch Jahr 3\",IF(B$14=\"Elektro direkt\",\"Stromverbrauch Jahr 3\",\"\"))))","v":""},null,{"$f":"IF(B$14=\"Öl\",\"Liter pro Jahr\",IF(B$14=\"Gas\",\"kWh pro Jahr\",IF(B$14=\"Holz\",\"kg pro Jahr\",IF(B$14=\"Elektro direkt\",\"kWh pro Jahr\",\"\"))))","v":""}]
[{"$f":"IF(B$14=\"Öl\",\"Ölverbrauch Jahr 4\",IF(B$14=\"Gas\",\"Gasverbrauch Jahr 4\",IF(B$14=\"Holz\",\"Holzverbrauch Jahr 4\",IF(B$14=\"Elektro direkt\",\"Stromverbrauch Jahr 4\",\"\"))))","v":""},null,{"$f":"IF(B$14=\"Öl\",\"Liter pro Jahr\",IF(B$14=\"Gas\",\"kWh pro Jahr\",IF(B$14=\"Holz\",\"kg pro Jahr\",IF(B$14=\"Elektro direkt\",\"kWh pro Jahr\",\"\"))))","v":""},"abweichung Jahresmitteltemp.","Jahresmitteltemp."]
[{"$f":"IF(B$14=\"Öl\",\"Druchschnitt Ölverbrauch\",IF(B$14=\"Gas\",\"Durchschnitt Gasverbrauch\",IF(B$14=\"Holz\",\"Durchschnitt Holzverbrauch\",IF(B$14=\"Elektro direkt\",\"Durchschnitt Stromverbrauch\",\"\"))))","v":""},{"$f":"IF(OR(B16<>\"\",B17<>\"\",B18<>\"\",B19<>\"\"),AVERAGE(B16:B19),\"\")","v":""},{"$f":"IF(B$14=\"Öl\",\"Liter pro Jahr\",IF(B$14=\"Gas\",\"kWh pro Jahr\",IF(B$14=\"Holz\",\"kg pro Jahr\",IF(B$14=\"Elektro direkt\",\"kWh pro Jahr\",\"\"))))","v":""},{"$f":"IF(E20<>\"\",E20-8.5,\"\")","v":""},{"$f":"IF(B10<>\"\",   IF(B12=\"Alpensüdseite\",-B13*0.005+13.17,   IF(B12=\"Alpennordseite\",-B13*0.005+11.17,\"\")),\"\")","v":""}]
["Verbrauchsart"]
[]
[]
["Bitte mit \"Enter\"-Taste Eingaben bestätigen."]
[]
[]
[]
[]
[]
["BERECHNUNG WÄRMEBEDARF",null,null,"n-1"]
["Wärmebedarf Heizen",{"$f":"IF(B4=\"Altbau\", IF(E11<>\"\",E11,\"\"),  IF(B4=\"Neubau\",IF(E12<>\"\",E12,\"\"),\"\"))","v":""},"kWh pro Jahr"]
["Wärmebedarf Warmwasser",{"$f":"IF(D11<>\"\",D11,\"\")","v":""},"kWh pro Jahr",0]
["Energiebezugsfläche ",{"$f":"IF(AND(B4=\"Neubau\",B5=\"Ja\",B6<>\"\"),B6,     IF(B10<>\"\",1.15*B10,\"\"))","v":""},"m2"]
["Energiekennzahl Heizen",{"$f":"IF(AND(B33<>0,B33<>\"\",B31<>\"\"),B31/B33,\"\")","v":""},"kWh/m2 pro Jahr",0]
["Energiekennzahl Heizen",{"$f":"IF(AND(B33<>0,B33<>\"\",B31<>\"\"),B31*3.6/B33,\"\")","v":""},"MJ/m2 pro Jahr"]
["Energiekennzahl Heizen + WW",{"$f":"IF(AND(B33<>0,B33<>\"\",B32<>\"\",B31<>\"\"),(B32+B31)/B33,\"\")","v":""},"kWh/m2 pro Jahr",0]
[]
[]
["Farblegende"]
["Erklärung","Benutzereingaben","Ausgabe"]
[]
[null,"Um eine bessere Einschätzung der Energieeffizienz des Gebäudes zu erhalten, kann kostenlos eine light-Version des Gebäudeenergieausweises der Kantone unter folgendem Link erstellt werden (19.09.12): "]
[]
[]
[]
[null,"http://www.geak.ch/Pages/Light/About/GeakLightPage.aspx"]

{"sheet":"Wirtschaftlichkeit","index":2,"n_rows":63,"n_cols":38,"rows_kept":63,"cut":false,"hidden":false,"merged":[[0,0,0,7],[12,6,14,7],[12,4,12,5],[12,2,12,3],[15,2,15,3],[15,5,15,6]]}
["www.erdsondenoptimierung.ch\n\nWirtschaftlichkeitsberechnung von Erdwärmesondenanlagen in Kombination mit Solaranlagen",null,null,null,null,null,null,null,null,null,null,null,null,null,null,null,null,null,null,null,null,null,null,null,null,null,null,null,null,null,null,null,null,null,null,null,null,"Institut für Facility Management | November 2012"]
[]
["BENUTZEREINGABEN"]
["Lebensdauer der Anlage",null,null,"Jahre","Strompreis Hochtarif",null,null,"Fr./kWh"]
["Kapitalzinssatz",null,null,"%","Strompreis Niedertarif",null,null,"Fr./kWh"]
["Wärmebedarf Heizung",null,{"$f":"IF(Heizenergiebedarf!B31<>\"\",Heizenergiebedarf!B31,\"\")","v":""},"kWh pro Jahr","Fläche Sonnenkollektor",null,null,"m2"]
["Wärmebedarf Warmwasser optional",null,{"$f":"IF(Heizenergiebedarf!B32<>\"\",Heizenergiebedarf!B32,\"\")","v":""},"kWh pro Jahr","Fläche Photovoltaik",null,null,"m2","ja"]
["Volllaststunden",null,null,"h","PV für KEV bestätigt",null,null,"ja/nein","nein"]
["Anzahl Sonden",null,1,null,{"$f":"IF(G8=\"nein\",\"Rückvergütungstarif PV\", IF(G8=\"ja\",\"Kostend. Einspeisevergütung\",\"\"))","v":""},null,null,"Fr./kWh"]
[{"$f":"IF(F12<>\"\",IF(F12>260,\"Achtung, Erdwärmesonde sehr tief, ev. Anzahl Sonden erhöhen\",IF(G12>260,\"Achtung, optimierte Erdwärmesonde sehr tief, ev. Anzahl Sonden erhöhen\",\"\")),\"\")","v":""}]
["BERECHNETE ANLAGEDATEN "]
["Total Wärmeleistung",{"$f":"IF(D12=\"zu gross\",\"ACHTUNG\",IF(C12=\"\",D12,C12))","v":""},null,{"$f":"IF(C12<>\"\",\"\",IF(C12>20,\"zu gross\",IF(AND(OR(C7<>\"\",C6<>\"\"),C8<>\"\"),IF((C6+C7)/C8>20,\"zu gross\",(C6+C7)/C8),\"\")))","v":""},"kW",{"$f":"IF(E14=\"\",F14,E14)","v":""},{"$f":"IF(E15=\"\",F15,E15)","v":""}]
[{"$f":"IF(C14=\"\",D14,C14)","v":""},{"$f":"IF(C15=\"\",D15,C15)","v":""},"JAZ",null,"Tiefe (m)",null,"Achtung, diese Tiefen sind nur eine Abschätzung und müssen gemäss der SIA Norm 384/6 ausgelegt werden."]
["Wärmepumpe mit Erdwärmesonde",null,null,{"$f":"IF(C14<>\"\",\"\",IF(AND(B12<>\"\",C9<>\"\",B12<>\"ACHTUNG\",Heizenergiebedarf!B4<>\"\"),         IF(Heizenergiebedarf!B4=\"Neubau\",4.4,3.6),\"\"))","v":""},null,{"$f":"IF(E14<>\"\",\"\",IF(AND(B$12<>\"\",C$9>0,B12<>\"ACHTUNG\"),B$12*1000*(1-1/A13)/(40*C$9),\"\"))","v":""}]
["Wärmepumpe mit Erdwärmesonde opt.",null,null,{"$f":"IF(C15<>\"\",\"\",IF(AND(B12<>\"\",C9<>\"\",B12<>\"ACHTUNG\",Heizenergiebedarf!B4<>\"\"),   IF(Heizenergiebedarf!B4=\"Neubau\",5,4),\"\"))","v":""},null,{"$f":"IF(E15<>\"\",\"\",IF(AND(B$12<>\"\",C$9>0,B12<>\"ACHTUNG\"),B$12*1000*(1-1/B13)/(40/1.3*C$9),\"\"))","v":""}]
[null,null,"Investitionskosten (Fr.)",null,null,"Wartungskosten/Jahr (Fr.)"]
["WP / EWS-Anlage",{"$f":"IF(C17=\"\",D17,C17)","v":""},null,{"$f":"IF(C17<>\"\",\"\",IF(AND(F12<>\"\",F12<>0),C9*F12*70+C9*2500+17000+15000+500*$B$12,\"\"))","v":""},{"$f":"IF(F17=\"\",G17,F17)","v":""},null,{"$f":"IF(F17<>\"\",\"\",IF(B17<>\"\",400,\"\"))","v":""}]
["WP / EWS-Anlage optimiert",{"$f":"IF(C18=\"\",D18,C18)","v":""},null,{"$f":"IF(C18<>\"\",\"\",IF(AND(G12<>\"\",G12<>0),C9*G12*76+C9*2500+17000+15000+500*$B$12-(C9*800),\"\"))","v":""},{"$f":"IF(F18=\"\",G18,F18)","v":""},null,{"$f":"IF(F18<>\"\",\"\",IF(B18<>\"\",400,\"\"))","v":""}]
["WP/ EWS Subventionen"]
["Thermischer Sonnenkollektor","",null,{"$f":"IF(C20<>\"\",\"\",IF(AND(G6<>\"\",B12<>\"ACHTUNG\",B12<>\"\"),G6*3000,\"\"))","v":""},{"$f":"IF(F20=\"\",G20,F20)","v":""},null,{"$f":"IF(F20<>\"\",\"\",IF(B20<>\"\",IF(G6>0,200,0),\"\"))","v":""}]
["Therm. Sonnenkollektor Subventionen",null,null,null,null,null,null,"Leistung PV (kW)"]
["Photovoltaikanlage","",null,{"$f":"IF(C22<>\"\",\"\",IF(AND(G7<>\"\",B12<>\"ACHTUNG\",B12<>\"\"),G7*650,\"\"))","v":""},{"$f":"IF(F22=\"\",G22,F22)","v":""},null,{"$f":"IF(F22<>\"\",\"\",IF(B22<>\"\",G7*95*0.06,\"\"))","v":""},{"$f":"IF(AND(G7<>\"\",B12<>\"ACHTUNG\",B12<>\"\"),G7*0.12,\"\")","v":""}]
["Photovoltaik Subventionen"]
["Planung, Bewilligung","",null,{"$f":"IF(C24<>\"\",\"\",IF(B17<>\"\",10000,\"\"))","v":""}]
["Maurer, Gärtner, ….","",null,{"$f":"IF(C25<>\"\",\"\",IF(B17<>\"\",5000,\"\"))","v":""}]
["Steuerabzug falls Sanierung","",null,{"$f":"IF(Heizenergiebedarf!B4 = \"Neubau\",0,   IF(C26<>\"\",\"\",IF(AND(B12<>\"\",B12<>0),20,\"\")))","v":""},"%"]
[]
["ENERGIEBILANZ (kWh pro Jahr)"]
[null,null,"EWSSTD","EWSSTD + SK","EWSSTD + PV","EWSOPT","EWSOPT + SK","EWSOPT + PV"]
["Totaler Heizenergiebedarf ",null,{"$f":"IF(AND(Wirtschaftlichkeit!$B$12<>\"\",B12<>0,$A$13<>\"\",B12<>\"ACHTUNG\"),B12*C8,\"\")","v":""},{"$f":"IF(AND(Wirtschaftlichkeit!$B$12<>\"\",B12<>0,$A$13<>\"\",B12<>\"ACHTUNG\"),B12*C8,\"\")","v":""},{"$f":"IF(AND(Wirtschaftlichkeit!$B$12<>\"\",B12<>0,$A$13<>\"\",B12<>\"ACHTUNG\"),B12*C8,\"\")","v":""},{"$f":"IF(AND(Wirtschaftlichkeit!$B$12<>\"\",B12<>0,$A$13<>\"\",B12<>\"ACHTUNG\"),B12*C8,\"\")","v":""},{"$f":"IF(AND(Wirtschaftlichkeit!$B$12<>\"\",B12<>0,$A$13<>\"\",B12<>\"ACHTUNG\"),B12*C8,\"\")","v":""},{"$f":"IF(AND(Wirtschaftlichkeit!$B$12<>\"\",B12<>0,$A$13<>\"\",B12<>\"ACHTUNG\"),B12*C8,\"\")","v":""}]
[" - Wärmeproduktion Solar ",null,{"$f":"IF(AND($B$12<>\"\",B12<>0),0,\"\")","v":""},{"$f":"IF(AND(G6<>\"\",B12<>\"ACHTUNG\",B12<>\"\",B12<>0),IF(G6<>\"\",Wirtschaftlichkeit!G6*390,0),\"\")","v":""},{"$f":"IF(AND(G7<>\"\",B12<>\"ACHTUNG\",B12<>\"\",B12<>0),0,\"\")","v":""},{"$f":"IF(AND($B$12<>\"\",B12<>0),0,\"\")","v":""},{"$f":"IF(AND(G6<>\"\",B12<>\"ACHTUNG\",B12<>\"\",B12<>0),IF(G6<>\"\",Wirtschaftlichkeit!G6*390,0),\"\")","v":""},{"$f":"IF(AND(G7<>\"\",B12<>\"ACHTUNG\",B12<>\"\",B12<>0),0,\"\")","v":""}]
["Wärmeproduktion EWS-Anlage",null,{"$f":"IF(C30=\"\",\"\",C30-C31)","v":""},{"$f":"IF(OR(D30=\"\",D31=\"\"),\"\",D30-D31)","v":""},{"$f":"IF(OR(E30=\"\",E31=\"\"),\"\",E30-E31)","v":""},{"$f":"IF(F30=\"\",\"\",F30-F31)","v":""},{"$f":"IF(OR(G30=\"\",G31=\"\"),\"\",G30-G31)","v":""},{"$f":"IF(OR(H30=\"\",H31=\"\"),\"\",H30-H31)","v":""}]
[" - Wärmeentzug Boden",null,{"$f":"IF(AND(Wirtschaftlichkeit!$B$12<>\"\",$B$12<>0,$A$13<>\"\",$B$12<>\"ACHTUNG\"),ROUND((C32)*(1-1/$A$13),0),\"\")","v":""},{"$f":"IF(AND(Wirtschaftlichkeit!$B$12<>\"\",$B$12<>0,$A$13<>\"\",$B$12<>\"ACHTUNG\",D32<>\"\"),ROUND((D32)*(1-1/$A$13),0),\"\")","v":""},{"$f":"IF(AND(Wirtschaftlichkeit!$B$12<>\"\",$B$12<>0,$A$13<>\"\",$B$12<>\"ACHTUNG\",E32<>\"\"),ROUND((E32)*(1-1/$A$13),0),\"\")","v":""},{"$f":"IF(AND(Wirtschaftlichkeit!$B$12<>\"\",$B$12<>0,$A$13<>\"\",$B$12<>\"ACHTUNG\"),ROUND((F32)*(1-1/$B$13),0),\"\")","v":""},{"$f":"IF(AND(Wirtschaftlichkeit!$B$12<>\"\",$B$12<>0,$A$13<>\"\",$B$12<>\"ACHTUNG\",G32<>\"\"),ROUND((G32)*(1-1/$B$13),0),\"\")","v":""},{"$f":"IF(AND(Wirtschaftlichkeit!$B$12<>\"\",$B$12<>0,$A$13<>\"\",$B$12<>\"ACHTUNG\",H32<>\"\"),ROUND((H32)*(1-1/$B$13),0),\"\")","v":""}]
["Strombedarf EWS-Anlage",null,{"$f":"IF(C32=\"\",\"\",C32-C33)","v":""},"","","","",""]
[" - Stromproduktion PV",null,{"$f":"IF(C30=\"\",\"\",0)","v":""},{"$f":"IF(D30=\"\",\"\",0)","v":""},{"$f":"IF(AND(G7<>\"\",B12<>\"ACHTUNG\",B12<>\"\",B12<>0),950*H22,\"\")","v":""},{"$f":"IF(F30=\"\",\"\",0)","v":""},{"$f":"IF(G30=\"\",\"\",0)","v":""},{"$f":"IF(AND(G7<>\"\",B12<>\"ACHTUNG\",B12<>\"\",B12<>0),950*H22,\"\")","v":""}]
["Strombezug aus dem öff. Netz",null,{"$f":"IF(C34=\"\",\"\",C34-C35)","v":""},"","","","",""]
[]
["KOSTENRECHNUNG"]
[null,null,"EWSSTD","EWSSTD + SK","EWSSTD + PV","EWSOPT","EWSOPT + SK","EWSOPT + PV"]
["Annuitätsfaktor",null,{"$f":"IF(Wirtschaftlichkeit!$B$17<>\"\",IF(AND(Wirtschaftlichkeit!$C$5<>\"\",Wirtschaftlichkeit!$C$4<>\"\"),IF($C$5=0,\"Kapitalzinssatz eingeben!\",(Wirtschaftlichkeit!$C$5/100)/(1-(1/(1+Wirtschaftlichkeit!$C$5/100)^Wirtschaftlichkeit!$C$4))),\"\"),\"\")","v":""},{"$f":"IF(Wirtschaftlichkeit!$B$17<>\"\",IF(AND(Wirtschaftlichkeit!$C$5<>\"\",Wirtschaftlichkeit!$C$4<>\"\",G6<>\"\"),IF($C$5=0,\"eingeben!\",(Wirtschaftlichkeit!$C$5/100)/(1-(1/(1+Wirtschaftlichkeit!$C$5/100)^Wirtschaftlichkeit!$C$4))),\"\"),\"\")","v":""},{"$f":"IF(Wirtschaftlichkeit!$B$17<>\"\",IF(AND(Wirtschaftlichkeit!$C$5<>\"\",Wirtschaftlichkeit!$C$4<>\"\",G7<>\"\"),IF($C$5=0,\"\",(Wirtschaftlichkeit!$C$5/100)/(1-(1/(1+Wirtschaftlichkeit!$C$5/100)^Wirtschaftlichkeit!$C$4))),\"\"),\"\")","v":""},{"$f":"IF(Wirtschaftlichkeit!$B$17<>\"\",IF(AND(Wirtschaftlichkeit!$C$5<>\"\",Wirtschaftlichkeit!$C$4<>\"\"),IF($C$5=0,\"\",(Wirtschaftlichkeit!$C$5/100)/(1-(1/(1+Wirtschaftlichkeit!$C$5/100)^Wirtschaftlichkeit!$C$4))),\"\"),\"\")","v":""},{"$f":"IF(Wirtschaftlichkeit!$B$17<>\"\",IF(AND(Wirtschaftlichkeit!$C$5<>\"\",Wirtschaftlichkeit!$C$4<>\"\",G6<>\"\"),IF($C$5=0,\"\",(Wirtschaftlichkeit!$C$5/100)/(1-(1/(1+Wirtschaftlichkeit!$C$5/100)^Wirtschaftlichkeit!$C$4))),\"\"),\"\")","v":""},{"$f":"IF(Wirtschaftlichkeit!$B$17<>\"\",IF(AND(Wirtschaftlichkeit!$C$5<>\"\",Wirtschaftlichkeit!$C$4<>\"\",G7<>\"\"),IF($C$5=0,\"\",(Wirtschaftlichkeit!$C$5/100)/(1-(1/(1+Wirtschaftlichkeit!$C$5/100)^Wirtschaftlichkeit!$C$4))),\"\"),\"\")","v":""}]
["Investition einmalig (Fr.)",null,{"$f":"IF(Wirtschaftlichkeit!B17<>\"\",(Wirtschaftlichkeit!B17+Wirtschaftlichkeit!B24+Wirtschaftlichkeit!B25-Wirtschaftlichkeit!C19)*(1-Wirtschaftlichkeit!B26/(100*(1+C5/100))),\"\")","v":""},{"$f":"IF(Wirtschaftlichkeit!B17<>\"\",IF(AND(Wirtschaftlichkeit!G6<>\"\"),(B17+B20+B24+B25-C19-C21)*(1-Wirtschaftlichkeit!B26/(100*(1+C5/100))),\"\"),\"\")","v":""},{"$f":"IF(Wirtschaftlichkeit!B17<>\"\",IF(Wirtschaftlichkeit!B22<>\"\",(B17+B22+B24+B25-C19-C23)*(1-Wirtschaftlichkeit!B26/(100*(1+C5/100))),\"\"),\"\")","v":""},{"$f":"IF(Wirtschaftlichkeit!B17<>\"\",(Wirtschaftlichkeit!B18+Wirtschaftlichkeit!B24+Wirtschaftlichkeit!B25-Wirtschaftlichkeit!C19-800)*(1-Wirtschaftlichkeit!B26/(100*(1+C5/100))),\"\")","v":""},{"$f":"IF(Wirtschaftlichkeit!B17<>\"\",IF(AND(Wirtschaftlichkeit!G6<>\"\"),(B18+B24+B25+B20-C19-C21-800)*(1-Wirtschaftlichkeit!B26/(100*(1+C5/100))),\"\"),\"\")","v":""},{"$f":"IF(Wirtschaftlichkeit!B17<>\"\",IF(Wirtschaftlichkeit!B22<>\"\",(B18+B22+B24+B25-C19-C23-800)*(1-Wirtschaftlichkeit!B26/(100*(1+C5/100))),\"\"),\"\")","v":""}]
["Stromkosten jährlich (Fr.)",null,{"$f":"IF(AND(AND(Wirtschaftlichkeit!$G$5<>\"\",Wirtschaftlichkeit!$G$4<>\"\"),C34<>\"\"),C34*((2*Wirtschaftlichkeit!$G$5/3)+(Wirtschaftlichkeit!$G$4/3)),\"\")","v":""},{"$f":"IF(AND(AND(Wirtschaftlichkeit!$G$5<>\"\",Wirtschaftlichkeit!$G$4<>\"\"),D34<>\"\"),D34*((2*Wirtschaftlichkeit!$G$5/3)+(Wirtschaftlichkeit!$G$4/3)),\"\")","v":""},{"$f":"IF(AND(AND(Wirtschaftlichkeit!$G$5<>\"\",Wirtschaftlichkeit!$G$4<>\"\"),E34<>\"\"),E34*((2*Wirtschaftlichkeit!$G$5/3)+(Wirtschaftlichkeit!$G$4/3)),\"\")","v":""},{"$f":"IF(AND(AND(Wirtschaftlichkeit!$G$5<>\"\",Wirtschaftlichkeit!$G$4<>\"\"),F34<>\"\"),F34*((2*Wirtschaftlichkeit!$G$5/3)+(Wirtschaftlichkeit!$G$4/3)),\"\")","v":""},{"$f":"IF(AND(AND(Wirtschaftlichkeit!$G$5<>\"\",Wirtschaftlichkeit!$G$4<>\"\"),G34<>\"\"),G34*((2*Wirtschaftlichkeit!$G$5/3)+(Wirtschaftlichkeit!$G$4/3)),\"\")","v":""},{"$f":"IF(AND(AND(Wirtschaftlichkeit!$G$5<>\"\",Wirtschaftlichkeit!$G$4<>\"\"),H34<>\"\"),H34*((2*Wirtschaftlichkeit!$G$5/3)+(Wirtschaftlichkeit!$G$4/3)),\"\")","v":""}]
["Ertrag Rückvergütung Photovoltaik (Fr.)",null,{"$f":"IF(AND(Wirtschaftlichkeit!B17<>\"\",C34<>\"\"),0,\"\")","v":""},{"$f":"IF(AND(Wirtschaftlichkeit!B17<>\"\",G6<>\"\"),0,\"\")","v":""},{"$f":"IF(AND(B17<>\"\",G7<>\"\"),IF(AND(G8=\"nein\",G9<>\"\",G9<>0),-E35*G9,0),\"\")","v":""},{"$f":"C43","v":""},{"$f":"D43","v":""},{"$f":"IF(AND(Wirtschaftlichkeit!B17<>\"\",G7<>\"\"),IF(AND(G8=\"nein\",G9<>0,G9<>\"\"),-H35*G9,0),\"\")","v":""}]
["KEV Photovoltaik (Fr.)",null,{"$f":"IF(Wirtschaftlichkeit!C40<>\"\",0,\"\")","v":""},{"$f":"IF(AND(G6<>\"\",B12<>\"ACHTUNG\",B12<>\"\",B12<>0),0,\"\")","v":""},{"$f":"IF(AND(B17<>\"\",G9<>\"\",G8<>\"\"),IF(G8=\"ja\",-H35*G9,0),\"\")","v":""},{"$f":"C44","v":""},{"$f":"D44","v":""},{"$f":"IF(AND(B17<>\"\",G9<>\"\",G8<>\"\"),IF(G8=\"ja\",-H35*G9,0),\"\")","v":""}]
["Wartungskosten jährlich (Fr.)",null,{"$f":"Wirtschaftlichkeit!E17","v":""},{"$f":"IF(AND(Wirtschaftlichkeit!E17<>\"\",Wirtschaftlichkeit!E20<>\"\"),Wirtschaftlichkeit!E17+Wirtschaftlichkeit!E20,\"\")","v":""},{"$f":"IF(AND(Wirtschaftlichkeit!E17<>\"\",Wirtschaftlichkeit!E22<>\"\"),Wirtschaftlichkeit!E17+Wirtschaftlichkeit!E22,\"\")","v":""},{"$f":"Wirtschaftlichkeit!E18","v":""},{"$f":"IF(AND(Wirtschaftlichkeit!E18<>\"\",Wirtschaftlichkeit!E20<>\"\"),Wirtschaftlichkeit!E18+Wirtschaftlichkeit!E20,\"\")","v":""},{"$f":"IF(AND(Wirtschaftlichkeit!E18<>\"\",Wirtschaftlichkeit!E22<>\"\"),Wirtschaftlichkeit!E18+Wirtschaftlichkeit!E22,\"\")","v":""}]
["Total Jahreskosten (Fr.)",null,{"$f":"IF(AND(AND(C40<>\"\",C41<>\"\"),AND(C42<>\"\",C45<>\"\")),IF(OR($C$5=0,C5=\"\"),\"Kapitalzinssatz\",C40*C41+C42+C45+C44+C43),\"\")","v":""},{"$f":"IF(AND(AND(D40<>\"\",D41<>\"\"),AND(D42<>\"\",D45<>\"\")),IF($C$5=0,\"eingeben!\",D40*D41+D42+D45+D44+D43),\"\")","v":""},{"$f":"IF(AND(E40<>\"\",E41<>\"\",E42<>\"\",E43<>\"\",E44<>\"\",E45<>\"\"),E40*E41+E42+E43+E44+E45,\"\")","v":""},{"$f":"IF(AND(F40<>\"\",F41<>\"\",F42<>\"\",F43<>\"\",F44<>\"\",F45<>\"\"),F40*F41+F42+F43+F44+F45,\"\")","v":""},{"$f":"IF(AND(G40<>\"\",G41<>\"\",G42<>\"\",G43<>\"\",G44<>\"\",G45<>\"\"),G40*G41+G42+G43+G44+G45,\"\")","v":""},{"$f":"IF(AND(H40<>\"\",H41<>\"\",H42<>\"\",H43<>\"\",H44<>\"\",H45<>\"\"),H40*H41+H42+H43+H44+H45,\"\")","v":""}]
["Betriebskosten pro Monat (Fr.)",null,{"$f":"IF(C46<>\"\",(C42+C45)/12,\"\")","v":""},{"$f":"IF(D46<>\"\",(D42+D45)/12,\"\")","v":""},{"$f":"IF(E46<>\"\",(E42+E45+E43+E44)/12,\"\")","v":""},{"$f":"IF(F46<>\"\",(F42+F45)/12,\"\")","v":""},{"$f":"IF(G46<>\"\",(G42+G45)/12,\"\")","v":""},{"$f":"IF(H46<>\"\",(H42+H45+H43+H44)/12,\"\")","v":""}]
["Gestehungskosten Wärme (Rp./kWh)",null,{"$f":"IF(AND(C46<>\"\",C46<>\"Kapitalzinssatz\",OR(Wirtschaftlichkeit!$C$6<>\"\",Wirtschaftlichkeit!$C$7<>\"\")),100*C46/(B12*C8),\"\")","v":""},{"$f":"IF(AND(AND(C46<>\"\",C46<>\"Kapitalzinssatz\",G6<>\"\"),OR(Wirtschaftlichkeit!$C$6<>\"\",Wirtschaftlichkeit!$C$7<>\"\")),100*D46/(B12*C8),\"\")","v":""},{"$f":"IF(AND(E46<>\"\",OR(Wirtschaftlichkeit!$C$6<>\"\",Wirtschaftlichkeit!$C$7<>\"\")),100*E46/(B12*C8),\"\")","v":""},{"$f":"IF(AND(F46<>\"\",OR(Wirtschaftlichkeit!$C$6<>\"\",Wirtschaftlichkeit!$C$7<>\"\")),100*F46/(B12*C8),\"\")","v":""},{"$f":"IF(AND(G46<>\"\",OR(Wirtschaftlichkeit!$C$6<>\"\",Wirtschaftlichkeit!$C$7<>\"\")),100*G46/(B12*C8),\"\")","v":""},{"$f":"IF(AND(H46<>\"\",OR(Wirtschaftlichkeit!$C$6<>\"\",Wirtschaftlichkeit!$C$7<>\"\")),100*H46/(B12*C8),\"\")","v":""}]
["Sparpotenzial ggü. günstigster Variante (%)",null,{"$f":"IF(AND(C46<>\"\",C46<>\"Kapitalzinssatz\"),100*(C46/MIN($C$46:$H$46))-100,\"\")","v":""},{"$f":"IF(AND(C46<>\"\",C46<>\"Kapitalzinssatz\",G6<>\"\"),100*(D46/MIN($C$46:$H$46))-100,\"\")","v":""},{"$f":"IF(E46<>\"\",100*(E46/MIN($C$46:$H$46))-100,\"\")","v":""},{"$f":"IF(F46<>\"\",100*(F46/MIN($C$46:$H$46))-100,\"\")","v":""},{"$f":"IF(G46<>\"\",100*(G46/MIN($C$46:$H$46))-100,\"\")","v":""},{"$f":"IF(H46<>\"\",100*(H46/MIN($C$46:$H$46))-100,\"\")","v":""}]
[]
[]
["Farblegende"]
["Erklärung","Benutzereingaben",null,"Ausgabe"]
[]
[null,"Druckdatum: ",{"$f":"TODAY()","v":"2012-11-02"},null,null,null,null,null,null,"EWSSTD: Standard Erdwärmesonde"]
[null,null,null,null,null,null,null,null,null,"EWSSTD + SK: Standard Erdwärmesonde mit thermischer Sonnenkollektoranlage"]
[null,null,null,null,null,null,null,null,null,"EWSSTD + PV: Standard Erdwärmesonde mit Photovoltaikanlage"]
[null,null,null,null,null,null,null,null,null,"EWSOPT: Optimierte Erdwärmesonde (30 % tiefer, höhere Jahresarbeitszahl, Wasser statt Sole)"]
[null,null,"EWSSTD","EWSSTD + SK","EWSSTD + PV","EWSOPT","EWSOPT + SK","EWSOPT + PV",null,"EWSOPT + SK: Optimierte Erdwärmesonde mit thermischer Sonnenkollektoranlage"]
[null,"Energie",{"$f":"C42+C43+C44","v":{"$error":"#VALUE!"}},{"$error":"#VALUE!"},{"$error":"#VALUE!"},{"$error":"#VALUE!"},{"$error":"#VALUE!"},{"$error":"#VALUE!"},null,"EWSOPT + PV: Optimierte Erdwärmesonde mit Photovoltaikanlage"]
[null,"Wartung",{"$f":"C45","v":""},"","","","",""]
[null,"Verzinsung + Abschreibung",{"$f":"C40*C41","v":{"$error":"#VALUE!"}},{"$error":"#VALUE!"},{"$error":"#VALUE!"},{"$error":"#VALUE!"},{"$error":"#VALUE!"},{"$error":"#VALUE!"}]
[null,"Total",{"$f":"SUM(C60:C62)","v":{"$error":"#VALUE!"}},{"$error":"#VALUE!"},{"$error":"#VALUE!"},{"$error":"#VALUE!"},{"$error":"#VALUE!"},{"$error":"#VALUE!"}]

{"sheet":"Haftungsausschluss, Copyright","index":3,"n_rows":33,"n_cols":2,"rows_kept":33,"cut":false,"hidden":false,"merged":[]}
[null,"Institut für Facility Management | November 2012"]
[]
["Haftungsausschluss"]
[]
["Dieses Berechnungswerkzeug wurde sorgfältig, unter Nutzung anerkannter Methoden und nach bestem Wissen erstellt. "]
["Die Anwendung und Nutzung dieser Rechenhilfe erfolgt in der alleinigen Verantwortung des Nutzers.  "]
["Alle zugrunde liegenden Zahlenwerte müssen bei jeder Anwendung überprüft und ggf. korrekt eingegeben werden (hellblaue Zellen). "]
["Der Anwender ist für die korrekte Eingabe der fallweise zutreffenden Zahlenwerte selbst verantwortlich. "]
["Die Anwendung und Nutzung dieser Rechenhilfe ersetzt nicht eine fachgerechte Planung einer Anlage.  "]
[]
["Die ZHAW resp. der Autor übernehmen keine Gewähr für die Richtigkeit der vorgegebenen Defaultwerte (lachsrote Zellen)."]
["Die ZHAW resp. der Autor übernehmen keinerlei Haftung für sämtliche Folgen, die aus der Anwendung dieser Rechenhilfe resultieren können."]
[]
["Copyright"]
[]
["Das Copyright für dieses Berechnungswerkzeug liegt bei der ZHAW, Institut für Facility Management, Prof. M. Hubbuch, CH-8822 Wädenswil"]
[]
["Dieses Berechnungswerkzeug darf ohne Gebühr heruntergeladen, gespeichert und genutzt werden."]
["Dieses Berechnungswerkzeug darf nicht auf anderen Homepages oder über jedwelche anderen Kanäle weiter verteilt oder angeboten werden."]
["Dieses Berechnungswerkzeug darf nicht gegen Entgeld genutzt, angeboten oder verkauft werden."]
["Dieses Berechnungswerkzeug darf nicht verändert werden."]
[]
["Alle weiteren Rechte sind vorbehalten. "]
[]
["Autorenschaft"]
[]
["Dieses Tool wurde im Rahmen des Projektes Optimierung von Erdwärmesonden erarbeitet: www.erdsondenoptimierung.ch"]
[]
["Zürcher Hochschule für Angewandte Wissenschaften (ZHAW)"]
["Institut für Facility Management"]
["Prof. Markus Hubbuch und Mitarbeitende"]
[]
["Wädenswil, November 2012"]